fUST/lending_fUST_20250214
["ID","MTS","AMOUNT","RATE_DAILY","PERIOD"]
[352997105,1739479845016,-867.46,0.00014273,2]
[352997106,1739479845026,-500.0,0.00014273,2]
[352997107,1739479845035,-500.0,0.00014273,2]
[352997108,1739479845045,-665.94,0.00014273,2]
[352997109,1739479845055,-500.0,0.00014273,2]
[352997110,1739479845065,-500.0,0.00014273,2]
[352997111,1739479845078,-948.34,0.00014273,2]
[352997112,1739479845087,-733.64,0.00014273,2]
[352997113,1739479845097,-500.0,0.00014273,2]
[352997114,1739479845107,-1950.72,0.00014273,2]
[352997115,1739479845119,-500.0,0.00014273,2]
[352997116,1739479845129,-997.65,0.00014273,2]
[352997117,1739479845141,-500.0,0.00014273,2]
[352997118,1739479845153,-500.0,0.00014273,2]
[352997119,1739479845163,-456.71645889,0.00014273,2]
[352997120,1739479845172,-3866.04,0.00014273,2]
[352997121,1739479845182,-900.13,0.00014273,2]
[352997122,1739479845192,-1039.38,0.00014273,2]
[352997123,1739479845202,-500.0,0.00014273,2]
[352997124,1739479845212,-500.0,0.00014273,2]
[352997125,1739479845223,-719.453721,0.00014353,2]
[352997126,1739479845233,-500.0,0.00014356,2]
[352997127,1739479845242,-407.18274271,0.00014356,2]
[352997128,1739479845253,-500.0,0.00014356,2]
[352997129,1739479845263,-540.33,0.00014356,2]
[352997130,1739479845273,-573.34197909,0.00014356,2]
[352997131,1739479845283,-500.0,0.00014356,2]
[352997132,1739479845294,-500.0,0.00014356,2]
[352997133,1739479845304,-500.0,0.00014356,2]
[352997134,1739479845314,-590.85,0.00014356,2]
[352997135,1739479845323,-500.0,0.00014356,2]
[352997136,1739479845334,-1753.32,0.00014356,2]
[352997137,1739479845343,-500.0,0.00014356,2]
[352997138,1739479845354,-1487.55,0.00014356,2]
[352997139,1739479845365,-806.12,0.00014356,2]
[352997140,1739479845376,-500.0,0.00014356,2]
[352997141,1739479845388,-443.4769894,0.00014356,2]
[352997142,1739479845403,-500.0,0.00014356,2]
[352997143,1739479845414,-500.0,0.00014356,2]
[352997144,1739479845425,-527.59,0.00014356,2]
[352997145,1739479845435,-10168.36,0.00014356,2]
[352997146,1739479845445,-500.0,0.00014356,2]
[352997147,1739479845456,-1312.23,0.00014356,2]
[352997148,1739479845467,-4887.83,0.00014356,2]
[352997149,1739479845478,-545.96,0.00014356,2]
[352997150,1739479845488,-625.34,0.00014356,2]
[352997151,1739479845498,-1434.61,0.00014356,2]
[352997152,1739479845508,-500.0,0.00014356,2]
[352997153,1739479845519,-500.0,0.00014356,2]
[352997154,1739479845528,-500.0,0.00014356,2]
[352997155,1739479845538,-867.46,0.00014356,2]
[352997156,1739479845719,-500.0,0.00014356,2]
[352997157,1739479845729,-500.0,0.00014356,2]
[352997158,1739479845740,-665.94,0.00014356,2]
[352997159,1739479845749,-500.0,0.00014356,2]
[352997160,1739479845758,-500.0,0.00014356,2]
[352997161,1739479845767,-948.34,0.00014356,2]
[352997162,1739479845777,-733.64,0.00014356,2]
[352997163,1739479845787,-500.0,0.00014356,2]
[352997164,1739479845797,-1950.72,0.00014356,2]
[352997165,1739479845808,-500.0,0.00014356,2]
[352997166,1739479845818,-997.65,0.00014356,2]
[352997167,1739479845828,-500.0,0.00014356,2]
[352997168,1739479845837,-500.0,0.00014356,2]
[352997169,1739479845848,-3866.04,0.00014356,2]
[352997170,1739479845858,-900.13,0.00014356,2]
[352997171,1739479845868,-1039.38,0.00014356,2]
[352997172,1739479845877,-239.3638756,0.00014356,2]
[352997173,1739479845887,-500.0,0.00014356,2]
[352997174,1739479845898,-1000.0,0.00014363,2]
[352997176,1739479845908,-151.0,0.000144,2]
[352997178,1739479845918,-2027.0856627,0.000144,2]
[352997179,1739479845927,-1109.88908915,0.000144,2]
[352997181,1739479845936,-637.48999674,0.00014438,2]
[352997182,1739479845946,-500.0,0.00014438,2]
[352997183,1739479845956,-540.33,0.00014438,2]
[352997184,1739479845966,-500.0,0.00014438,2]
[352997186,1739479845975,-500.0,0.00014438,2]
[352997188,1739479845986,-500.0,0.00014438,2]
[352997190,1739479845995,-590.85,0.00014438,2]
[352997192,1739479846006,-500.0,0.00014438,2]
[352997194,1739479846016,-1753.32,0.00014438,2]
[352997195,1739479846025,-500.0,0.00014438,2]
[352997197,1739479846034,-1487.55,0.00014438,2]
[352997198,1739479846044,-806.12,0.00014438,2]
[352997199,1739479846053,-500.0,0.00014438,2]
[352997200,1739479846063,-500.0,0.00014438,2]
[352997201,1739479846073,-500.0,0.00014438,2]
[352997202,1739479846082,-527.59,0.00014438,2]
[352997203,1739479846091,-10168.36,0.00014438,2]
[352997204,1739479846100,-500.0,0.00014438,2]
[352997205,1739479846111,-1312.23,0.00014438,2]
[352997206,1739479846120,-4887.83,0.00014438,2]
[352997207,1739479846130,-545.96,0.00014438,2]
[352997208,1739479846140,-625.34,0.00014438,2]
[352997209,1739479846152,-1434.61,0.00014438,2]
[352997210,1739479846162,-500.0,0.00014438,2]
[352997211,1739479846171,-500.0,0.00014438,2]
[352997212,1739479846180,-500.0,0.00014438,2]
[352997213,1739479846189,-867.46,0.00014438,2]
[352997214,1739479846198,-500.0,0.00014438,2]
[352997215,1739479846208,-500.0,0.00014438,2]
[352997216,1739479846217,-665.94,0.00014438,2]
[352997217,1739479846226,-500.0,0.00014438,2]
[352997218,1739479846235,-500.0,0.00014438,2]
[352997219,1739479846245,-948.34,0.00014438,2]
[352997220,1739479846255,-733.64,0.00014438,2]
[352997221,1739479846263,-500.0,0.00014438,2]
[352997222,1739479846272,-1950.72,0.00014438,2]
[352997223,1739479846282,-500.0,0.00014438,2]
[352997224,1739479846291,-997.65,0.00014438,2]
[352997225,1739479846302,-500.0,0.00014438,2]
[352997227,1739479846311,-500.0,0.00014438,2]
[352997229,1739479846320,-3866.04,0.00014438,2]
[352997230,1739479846329,-900.13,0.00014438,2]
[352997231,1739479846338,-1039.38,0.00014438,2]
[352997233,1739479846347,-500.0,0.00014438,2]
[352997234,1739479846356,-620.55842609,0.00014491,2]
[352997236,1739479846366,-32669.58861786,0.000145,5]
[352997238,1739479846376,-20005.11980459,0.000145,5]
[352997240,1739479846386,-291198.23392008,0.000145,5]
[352997244,1739479846403,-95913.82486238,0.000145,5]
[352997254,1739479846545,-770.86872224,0.000145,5]
[352997255,1739479846556,-969.92,0.000145,5]
[352997271,1739480950152,-400.0,0.00010685,2]
[352997272,1739480950181,-2502.01218879,0.00011,3]
[352997606,1739481035315,-4825.86401531,0.00011,3]
[352997609,1739481035434,-90.14682989,0.00011,3]
[352997610,1739481035446,-490.0,0.00011287,2]
[352997611,1739481035458,-300.0,0.000114,2]
[352997612,1739481035471,-5000.0,0.00011401,2]
[352997613,1739481035485,-420.0,0.00012522,2]
[352997614,1739481035498,-1000.0,0.00012993,2]
[352997615,1739481035511,-192.24738546,0.0001368,2]
[352997616,1739481035522,-500.0,0.00013698,2]
[352997617,1739481035534,-500.0,0.00013698,2]
[352997618,1739481035545,-500.0,0.00013698,2]
[352997619,1739481035556,-500.0,0.00013698,2]
[352997620,1739481035567,-500.0,0.00013698,2]
[352997621,1739481035579,-1314.99,0.00013698,2]
[352997622,1739481035590,-500.0,0.00013698,2]
[352997623,1739481035602,-500.0,0.00013698,2]
[352997624,1739481035615,-500.0,0.00013698,2]
[352997625,1739481035626,-500.0,0.00013698,2]
[352997627,1739481035638,-500.0,0.00013698,2]
[352997629,1739481035649,-371.051941,0.00013698,2]
[352997631,1739481035661,-500.0,0.00013698,2]
[352997633,1739481035672,-500.0,0.00013698,2]
[352997636,1739481035683,-500.0,0.00013698,2]
[352997638,1739481035695,-500.0,0.00013698,2]
[352997640,1739481035708,-500.0,0.00013698,2]
[352997643,1739481035719,-500.0,0.00013698,2]
[352997645,1739481035731,-500.0,0.00013698,2]
[352997647,1739481035743,-500.0,0.00013698,2]
[352997648,1739481035754,-500.0,0.00013698,2]
[352997649,1739481035765,-736.23,0.00013698,2]
[352997650,1739481035776,-500.0,0.00013698,2]
[352997651,1739481035787,-637.59,0.00013698,2]
[352997652,1739481035799,-306.20055282,0.00013698,2]
[352997653,1739481035809,-836.54,0.00013698,2]
[352997654,1739481035820,-1115.66,0.00013698,2]
[352997655,1739481035831,-500.0,0.00013698,2]
[352997656,1739481035841,-500.0,0.00013698,2]
[352997657,1739481035853,-604.59,0.00013698,2]
[352997658,1739481035864,-500.0,0.00013698,2]
[352997659,1739481035875,-500.0,0.00013698,2]
[352997660,1739481035886,-500.0,0.00013698,2]
[352997661,1739481035897,-500.0,0.00013698,2]
[352997662,1739481035909,-7626.27,0.00013698,2]
[352997663,1739481035920,-984.18,0.00013698,2]
[352997664,1739481035932,-2738.44,0.00013698,2]
[352997665,1739481035944,-500.0,0.00013698,2]
[352997666,1739481035957,-500.0,0.00013698,2]
[352997667,1739481035969,-500.0,0.00013698,2]
[352997668,1739481035981,-500.0,0.00013698,2]
[352997669,1739481035993,-500.0,0.00013698,2]
[352997670,1739481036005,-500.0,0.00013698,2]
[352997671,1739481036018,-500.0,0.00013698,2]
[352997672,1739481036029,-500.0,0.00013698,2]
[352997673,1739481036040,-500.0,0.00013698,2]
[352997674,1739481036050,-1075.95,0.00013698,2]
[352997675,1739481036060,-500.0,0.00013698,2]
[352997676,1739481036070,-500.0,0.00013698,2]
[352997677,1739481036080,-500.0,0.00013698,2]
[352997678,1739481036090,-500.0,0.00013698,2]
[352997679,1739481036101,-500.0,0.00013698,2]
[352997680,1739481036111,-500.0,0.00013698,2]
[352997681,1739481036123,-3665.87,0.00013698,2]
[352997682,1739481036134,-500.0,0.00013698,2]
[352997683,1739481036144,-500.0,0.00013698,2]
[352997684,1739481036157,-500.0,0.00013698,2]
[352997685,1739481036168,-624.01,0.00013698,2]
[352997686,1739481036179,-500.0,0.00013698,2]
[352997687,1739481036190,-500.0,0.00013698,2]
[352997688,1739481036200,-500.0,0.00013698,2]
[352997689,1739481036210,-1381.76,0.00013698,2]
[352997690,1739481036219,-671.74,0.00013698,2]
[352997691,1739481036231,-500.0,0.00013698,2]
[352997692,1739481036240,-519.66,0.00013698,2]
[352997693,1739481036252,-500.0,0.00013698,2]
[352997694,1739481036262,-500.0,0.00013698,2]
[352997695,1739481036272,-706.67,0.00013698,2]
[352997697,1739481036284,-500.0,0.00013698,2]
[352997699,1739481036294,-500.0,0.00013698,2]
[352997701,1739481036305,-500.0,0.00013698,2]
[352997703,1739481036315,-500.0,0.00013698,2]
[352997704,1739481036327,-500.0,0.00013698,2]
[352997705,1739481036338,-500.0,0.00013698,2]
[352997706,1739481036348,-532.543765,0.00013699,2]
[352997707,1739481036358,-587.0,0.00013755,2]
[352997709,1739481036368,-583.60960436,0.0001378,2]
[352997711,1739481036379,-500.0,0.0001378,2]
[352997713,1739481036390,-421.99817188,0.0001378,2]
[352997716,1739481036400,-500.0,0.0001378,2]
[352997718,1739481036411,-1314.99,0.0001378,2]
[352997719,1739481036422,-500.0,0.0001378,2]
[352997720,1739481036435,-500.0,0.0001378,2]
[352997721,1739481036446,-500.0,0.0001378,2]
[352997722,1739481036457,-500.0,0.0001378,2]
[352997723,1739481036478,-500.0,0.0001378,2]
[352997725,1739481036488,-500.0,0.0001378,2]
[352997727,1739481036499,-500.0,0.0001378,2]
[352997729,1739481036509,-500.0,0.0001378,2]
[352997731,1739481036521,-500.0,0.0001378,2]
[352997733,1739481036532,-500.0,0.0001378,2]
[352997735,1739481036543,-500.0,0.0001378,2]
[352997738,1739481036553,-500.0,0.0001378,2]
[352997740,1739481036563,-736.23,0.0001378,2]
[352997742,1739481036574,-500.0,0.0001378,2]
[352997744,1739481036585,-637.59,0.0001378,2]
[352997746,1739481036595,-836.54,0.0001378,2]
[352997748,1739481036607,-1115.66,0.0001378,2]
[352997750,1739481036617,-500.0,0.0001378,2]
[352997752,1739481036628,-500.0,0.0001378,2]
[352997755,1739481036638,-604.59,0.0001378,2]
[352997757,1739481036648,-500.0,0.0001378,2]
[352997759,1739481036660,-500.0,0.0001378,2]
[352997761,1739481036670,-500.0,0.0001378,2]
[352997763,1739481036680,-500.0,0.0001378,2]
[352997765,1739481036691,-7626.27,0.0001378,2]
[352997767,1739481036702,-984.18,0.0001378,2]
[352997769,1739481036712,-2738.44,0.0001378,2]
[352997771,1739481036722,-500.0,0.0001378,2]
[352997774,1739481036733,-500.0,0.0001378,2]
[352997776,1739481036743,-500.0,0.0001378,2]
[352997778,1739481036755,-500.0,0.0001378,2]
[352997780,1739481036766,-500.0,0.0001378,2]
[352997782,1739481036776,-500.0,0.0001378,2]
[352997784,1739481036787,-500.0,0.0001378,2]
[352997786,1739481036798,-500.0,0.0001378,2]
[352997788,1739481036810,-500.0,0.0001378,2]
[352997791,1739481036823,-1075.95,0.0001378,2]
[352997793,1739481036833,-500.0,0.0001378,2]
[352997795,1739481036843,-500.0,0.0001378,2]
[352997797,1739481036854,-500.0,0.0001378,2]
[352997799,1739481036864,-500.0,0.0001378,2]
[352997801,1739481036874,-500.0,0.0001378,2]
[352997803,1739481036885,-3665.87,0.0001378,2]
[352997805,1739481036895,-500.0,0.0001378,2]
[352997808,1739481036906,-500.0,0.0001378,2]
[352997810,1739481036916,-500.0,0.0001378,2]
[352997812,1739481036926,-624.01,0.0001378,2]
[352997814,1739481036936,-500.0,0.0001378,2]
[352997816,1739481036948,-500.0,0.0001378,2]
[352997818,1739481036959,-500.0,0.0001378,2]
[352997820,1739481036970,-1381.76,0.0001378,2]
[352997822,1739481036980,-671.74,0.0001378,2]
[352997825,1739481036990,-500.0,0.0001378,2]
[352997827,1739481037001,-519.66,0.0001378,2]
[352997829,1739481037013,-370.38,0.0001378,2]
[352997831,1739481037024,-500.0,0.0001378,2]
[352997833,1739481037034,-706.67,0.0001378,2]
[352997835,1739481037045,-500.0,0.0001378,2]
[352997837,1739481037055,-500.0,0.0001378,2]
[352997840,1739481037067,-500.0,0.0001378,2]
[352997842,1739481037077,-500.0,0.0001378,2]
[352997844,1739481037087,-500.0,0.0001378,2]
[352997846,1739481037097,-500.0,0.0001378,2]
[352997848,1739481037107,-396.0,0.00013786,2]
[352997870,1739481037297,-215.9004297,0.00013808,2]
[352997873,1739481037312,-154.6488878,0.00013808,2]
[352997875,1739481037324,-215.9004297,0.00013808,2]
[352997877,1739481037334,-215.9004297,0.00013808,2]
[352997879,1739481037343,-154.6488878,0.00013808,2]
[352997881,1739481037353,-215.9004297,0.00013808,2]
[352997883,1739481037363,-154.6488878,0.00013808,2]
[352997885,1739481037372,-215.9004297,0.00013808,2]
[352997887,1739481037382,-154.6488878,0.00013808,2]
[352997889,1739481037391,-215.9004297,0.00013808,2]
[352997891,1739481037401,-577.6878311,0.00013841,2]
[352997893,1739481037410,-152.0,0.00013842,2]
[352997895,1739481037419,-500.0,0.00013863,2]
[352997897,1739481037430,-500.0,0.00013863,2]
[352997899,1739481037442,-1314.99,0.00013863,2]
[352997901,1739481037452,-500.0,0.00013863,2]
[352997903,1739481037461,-500.0,0.00013863,2]
[352997905,1739481037472,-500.0,0.00013863,2]
[352997907,1739481037482,-500.0,0.00013863,2]
[352997909,1739481037492,-500.0,0.00013863,2]
[352997911,1739481037502,-500.0,0.00013863,2]
[352997913,1739481037513,-500.0,0.00013863,2]
[352997915,1739481037523,-500.0,0.00013863,2]
[352997917,1739481037532,-500.0,0.00013863,2]
[352997919,1739481037542,-500.0,0.00013863,2]
[352997921,1739481037551,-500.0,0.00013863,2]
[352997923,1739481037560,-500.0,0.00013863,2]
[352997925,1739481037570,-736.23,0.00013863,2]
[352997926,1739481037579,-500.0,0.00013863,2]
[352997928,1739481037588,-637.59,0.00013863,2]
[352997930,1739481037597,-836.54,0.00013863,2]
[352997932,1739481037607,-1115.66,0.00013863,2]
[352997934,1739481037616,-500.0,0.00013863,2]
[352997936,1739481037625,-500.0,0.00013863,2]
[352997938,1739481037635,-604.59,0.00013863,2]
[352997940,1739481037644,-500.0,0.00013863,2]
[352997942,1739481037654,-500.0,0.00013863,2]
[352997944,1739481037663,-500.0,0.00013863,2]
[352997946,1739481037673,-500.0,0.00013863,2]
[352997948,1739481037683,-7626.27,0.00013863,2]
[352997950,1739481037692,-984.18,0.00013863,2]
[352997952,1739481037702,-2738.44,0.00013863,2]
[352997954,1739481037712,-500.0,0.00013863,2]
[352997956,1739481037721,-500.0,0.00013863,2]
[352997958,1739481037730,-500.0,0.00013863,2]
[352997960,1739481037740,-500.0,0.00013863,2]
[352997962,1739481037750,-500.0,0.00013863,2]
[352997964,1739481037760,-500.0,0.00013863,2]
[352997966,1739481037769,-500.0,0.00013863,2]
[352997968,1739481037778,-500.0,0.00013863,2]
[352997970,1739481037788,-1075.95,0.00013863,2]
[352997973,1739481037799,-500.0,0.00013863,2]
[352997975,1739481037808,-500.0,0.00013863,2]
[352997978,1739481037817,-500.0,0.00013863,2]
[352997980,1739481037826,-500.0,0.00013863,2]
[352997983,1739481037835,-500.0,0.00013863,2]
[352997985,1739481037844,-3665.87,0.00013863,2]
[352997987,1739481037853,-500.0,0.00013863,2]
[352997990,1739481037862,-500.0,0.00013863,2]
[352997993,1739481037871,-500.0,0.00013863,2]
[352997996,1739481037880,-624.01,0.00013863,2]
[352997998,1739481037890,-623.92157562,0.00013863,2]
[352998000,1739481037899,-500.0,0.00013863,2]
[352998002,1739481037909,-500.0,0.00013863,2]
[352998004,1739481037918,-1381.76,0.00013863,2]
[352998006,1739481037927,-671.74,0.00013863,2]
[352998008,1739481037937,-500.0,0.00013863,2]
[352998010,1739481037947,-519.66,0.00013863,2]
[352998012,1739481037957,-500.0,0.00013863,2]
[352998014,1739481037966,-706.67,0.00013863,2]
[352998016,1739481037976,-551.24179335,0.00013863,2]
[352998018,1739481037985,-500.0,0.00013863,2]
[352998020,1739481037994,-500.0,0.00013863,2]
[352998022,1739481038004,-174.60026312,0.00013863,2]
[352998025,1739481038027,-325.39973688,0.00013863,2]
[352998027,1739481038036,-500.0,0.00013863,2]
[352998029,1739481038046,-500.0,0.00013863,2]
[352998031,1739481038056,-154.1710741,0.0001389,2]
[352998033,1739481038065,-215.9004297,0.0001389,2]
[352998036,1739481038076,-215.9004297,0.0001389,2]
[352998038,1739481038085,-500.0,0.00013945,2]
[352998040,1739481038095,-1314.99,0.00013945,2]
[352998042,1739481038105,-500.0,0.00013945,2]
[352998044,1739481038115,-500.0,0.00013945,2]
[352998046,1739481038124,-201.5,0.00013945,2]
[352998048,1739481038134,-500.0,0.00013945,2]
[352998050,1739481038143,-500.0,0.00013945,2]
[352998052,1739481038153,-500.0,0.00013945,2]
[352998054,1739481038163,-500.0,0.00013945,2]
[352998056,1739481038173,-500.0,0.00013945,2]
[352998058,1739481038182,-500.0,0.00013945,2]
[352998060,1739481038192,-500.0,0.00013945,2]
[352998062,1739481038201,-500.0,0.00013945,2]
[352998064,1739481038211,-736.23,0.00013945,2]
[352998066,1739481038220,-500.0,0.00013945,2]
[352998068,1739481038230,-637.59,0.00013945,2]
[352998070,1739481038239,-836.54,0.00013945,2]
[352998072,1739481038249,-1115.66,0.00013945,2]
[352998074,1739481038258,-500.0,0.00013945,2]
[352998076,1739481038268,-604.59,0.00013945,2]
[352998078,1739481038277,-500.0,0.00013945,2]
[352998080,1739481038287,-500.0,0.00013945,2]
[352998082,1739481038296,-500.0,0.00013945,2]
[352998084,1739481038306,-500.0,0.00013945,2]
[352998086,1739481038315,-3213.12832962,0.00013945,2]
[352998088,1739481038328,-4413.14167038,0.00013945,2]
[352998090,1739481038337,-984.18,0.00013945,2]
[352998092,1739481038347,-2738.44,0.00013945,2]
[352998094,1739481038356,-500.0,0.00013945,2]
[352998096,1739481038366,-500.0,0.00013945,2]
[352998098,1739481038375,-500.0,0.00013945,2]
[352998100,1739481038384,-500.0,0.00013945,2]
[352998102,1739481038393,-500.0,0.00013945,2]
[352998104,1739481038403,-229.23828962,0.00013945,2]
[352998127,1739481038633,-270.76171038,0.00013945,2]
[352998129,1739481038643,-500.0,0.00013945,2]
[352998131,1739481038653,-500.0,0.00013945,2]
[352998133,1739481038662,-1075.95,0.00013945,2]
[352998135,1739481038672,-500.0,0.00013945,2]
[352998137,1739481038681,-500.0,0.00013945,2]
[352998139,1739481038691,-500.0,0.00013945,2]
[352998141,1739481038701,-3665.87,0.00013945,2]
[352998143,1739481038711,-500.0,0.00013945,2]
[352998144,1739481038721,-624.01,0.00013945,2]
[352998145,1739481038730,-500.0,0.00013945,2]
[352998146,1739481038740,-500.0,0.00013945,2]
[352998147,1739481038749,-1381.76,0.00013945,2]
[352998148,1739481038758,-671.74,0.00013945,2]
[352998149,1739481038768,-519.66,0.00013945,2]
[352998150,1739481038778,-500.0,0.00013945,2]
[352998151,1739481038787,-706.67,0.00013945,2]
[352998152,1739481038796,-500.0,0.00013945,2]
[352998153,1739481038805,-500.0,0.00013945,2]
[352998154,1739481038814,-500.0,0.00013945,2]
[352998155,1739481038824,-500.0,0.00013945,2]
[352998156,1739481038835,-13268.2024785,0.00014012,2]
[352998157,1739481038845,-1314.99,0.00014027,2]
[352998158,1739481038855,-500.0,0.00014027,2]
[352998159,1739481038865,-500.0,0.00014027,2]
[352998160,1739481038874,-500.0,0.00014027,2]
[352998161,1739481038884,-500.0,0.00014027,2]
[352998162,1739481038894,-253.21891303,0.00014027,2]
[352998163,1739481038903,-500.0,0.00014027,2]
[352998164,1739481038913,-500.0,0.00014027,2]
[352998165,1739481038922,-736.23,0.00014027,2]
[352998166,1739481038932,-637.59,0.00014027,2]
[352998167,1739481038943,-836.54,0.00014027,2]
[352998168,1739481038953,-1115.66,0.00014027,2]
[352998169,1739481038963,-604.59,0.00014027,2]
[352998170,1739481038973,-500.0,0.00014027,2]
[352998171,1739481038983,-500.0,0.00014027,2]
[352998172,1739481038992,-500.0,0.00014027,2]
[352998173,1739481039001,-500.0,0.00014027,2]
[352998174,1739481039011,-7626.27,0.00014027,2]
[352998175,1739481039021,-984.18,0.00014027,2]
[352998176,1739481039030,-2738.44,0.00014027,2]
[352998177,1739481039041,-500.0,0.00014027,2]
[352998178,1739481039051,-500.0,0.00014027,2]
[352998179,1739481039060,-500.0,0.00014027,2]
[352998180,1739481039070,-500.0,0.00014027,2]
[352998181,1739481039080,-500.0,0.00014027,2]
[352998182,1739481039089,-500.0,0.00014027,2]
[352998183,1739481039099,-500.0,0.00014027,2]
[352998184,1739481039109,-500.0,0.00014027,2]
[352998185,1739481039118,-1075.95,0.00014027,2]
[352998186,1739481039128,-500.0,0.00014027,2]
[352998187,1739481039137,-500.0,0.00014027,2]
[352998188,1739481039146,-539.07915176,0.00014027,2]
[352998189,1739481039155,-3665.87,0.00014027,2]
[352998190,1739481039165,-500.0,0.00014027,2]
[352998191,1739481039175,-624.01,0.00014027,2]
[352998192,1739481039185,-500.0,0.00014027,2]
[352998193,1739481039194,-500.0,0.00014027,2]
[352998194,1739481039203,-1381.76,0.00014027,2]
[352998195,1739481039213,-671.74,0.00014027,2]
[352998196,1739481039223,-519.66,0.00014027,2]
[352998197,1739481039233,-500.0,0.00014027,2]
[352998198,1739481039244,-706.67,0.00014027,2]
[352998199,1739481039255,-500.0,0.00014027,2]
[352998200,1739481039265,-500.0,0.00014027,2]
[352998201,1739481039275,-500.0,0.00014027,2]
[352998202,1739481039284,-792.422,0.00014029,2]
[352998203,1739481039294,-165.76681782,0.00014034,5]
[352998204,1739481039304,-192.24738546,0.0001404,2]
[352998205,1739481039313,-1314.99,0.00014109,2]
[352998206,1739481039323,-500.0,0.00014109,2]
[352998207,1739481039333,-500.0,0.00014109,2]
[352998208,1739481039342,-500.0,0.00014109,2]
[352998209,1739481039352,-510.72659721,0.00014109,2]
[352998210,1739481039362,-500.0,0.00014109,2]
[352998211,1739481039372,-500.0,0.00014109,2]
[352998212,1739481039382,-736.23,0.00014109,2]
[352998213,1739481039391,-637.59,0.00014109,2]
[352998214,1739481039401,-836.54,0.00014109,2]
[352998215,1739481039411,-1115.66,0.00014109,2]
[352998216,1739481039421,-604.59,0.00014109,2]
[352998217,1739481039432,-500.0,0.00014109,2]
[352998218,1739481039444,-500.0,0.00014109,2]
[352998219,1739481039455,-500.0,0.00014109,2]
[352998220,1739481039466,-500.0,0.00014109,2]
[352998221,1739481039477,-7626.27,0.00014109,2]
[352998222,1739481039491,-984.18,0.00014109,2]
[352998223,1739481039501,-2738.44,0.00014109,2]
[352998224,1739481039513,-500.0,0.00014109,2]
[352998225,1739481039522,-500.0,0.00014109,2]
[352998226,1739481039531,-500.0,0.00014109,2]
[352998227,1739481039540,-500.0,0.00014109,2]
[352998228,1739481039550,-500.0,0.00014109,2]
[352998229,1739481039559,-500.0,0.00014109,2]
[352998230,1739481039568,-500.0,0.00014109,2]
[352998231,1739481039578,-239.83258495,0.00014109,2]
[352998232,1739481039587,-1075.95,0.00014109,2]
[352998233,1739481039596,-500.0,0.00014109,2]
[352998234,1739481039606,-500.0,0.00014109,2]
[352998235,1739481039615,-3665.87,0.00014109,2]
[352998236,1739481039624,-500.0,0.00014109,2]
[352998237,1739481039635,-624.01,0.00014109,2]
[352998238,1739481039644,-500.0,0.00014109,2]
[352998239,1739481039653,-500.0,0.00014109,2]
[352998240,1739481039662,-1381.76,0.00014109,2]
[352998241,1739481039671,-671.74,0.00014109,2]